bitfinex/quotes_BTCUSD_20240803
["timestamp","ask_amount","ask_price","bid_price","bid_amount"]
[1722715548031,0.16575089,60498.0,60497.0,0.165297]
[1722715548256,0.26575089,60498.0,60495.0,0.165302]
[1722715548451,0.00157439,60497.0,60496.0,0.1653]
[1722715548602,0.16732528,60497.0,60495.0,0.165302]
[1722715548802,0.16732528,60497.0,60496.0,0.1653]
[1722715549006,0.16575089,60497.0,60496.0,0.1653]
[1722715549209,0.16575089,60497.0,60494.0,0.165303]
[1722715549418,0.16575089,60497.0,60493.0,0.1149]
[1722715549419,0.00157439,60496.0,60495.0,0.165302]
[1722715549624,0.00157439,60496.0,60495.0,0.495907]
[1722715549820,0.16575089,60496.0,60488.0,0.330638]
[1722715550022,0.16732528,60495.0,60491.0,0.165313]
[1722715550227,0.16732528,60495.0,60489.0,0.165316]
[1722715550454,0.16732528,60495.0,60488.0,0.1149]
[1722715551029,0.16732528,60495.0,60489.0,0.165318]
[1722715551177,0.16832528,60495.0,60490.0,0.165315]
[1722715551789,0.16832528,60495.0,60488.0,0.1149]
[1722715551967,0.16832528,60495.0,60489.0,0.165317]
[1722715552170,0.18232528,60495.0,60488.0,0.1149]
[1722715552371,0.18232528,60495.0,60484.0,0.330661]
[1722715552372,0.08291805,60492.0,60483.0,0.1149]
[1722715552570,0.08291805,60492.0,60474.0,0.165359]
[1722715552571,0.08291805,60485.0,60474.0,0.165359]
[1722715552799,0.08291805,60485.0,60475.0,0.165357]
[1722715552800,0.16732528,60484.0,60475.0,0.165357]
[1722715552970,0.16732528,60484.0,60473.0,0.1149]
[1722715553573,0.16732528,60484.0,60474.0,0.33072]
[1722715553794,0.33265828,60484.0,60474.0,0.165359]
[1722715554209,0.33265828,60484.0,60475.0,0.165357]
[1722715554210,0.02593581,60482.0,60475.0,0.165357]
[1722715554439,0.16732528,60481.0,60475.0,0.165357]
[1722715554661,0.16732528,60481.0,60474.0,0.165359]
[1722715554888,0.16732528,60481.0,60473.0,0.1149]
[1722715554889,0.33266728,60481.0,60473.0,0.1149]
[1722715555708,0.118,60480.0,60471.0,0.0093]
[1722715555910,0.09291805,60477.0,60471.0,0.0093]
[1722715556110,0.35568028,60476.0,60471.0,0.0093]
[1722715556225,0.18875089,60476.0,60471.0,0.0093]
[1722715556428,0.16536,60474.0,60471.0,0.0093]
[1722715556679,0.16575089,60473.0,60471.0,0.0093]
[1722715558290,0.17075089,60473.0,60471.0,0.0093]
[1722715559036,0.17075089,60473.0,60471.0,0.174667]
[1722715559247,0.005,60473.0,60472.0,0.917327]
[1722715559444,0.015,60473.0,60472.0,0.0905]
[1722715559913,0.015,60473.0,60472.0,0.165365]
[1722715560065,0.01,60473.0,60472.0,0.165365]
[1722715560405,0.01,60473.0,60471.0,0.0093]
[1722715560406,0.003,60473.0,60471.0,0.0093]
[1722715560543,0.012,60473.0,60472.0,0.826827]
[1722715560977,0.009,60473.0,60472.0,0.826827]
[1722715561182,0.011,60473.0,60472.0,0.826827]
[1722715561387,0.011,60473.0,60472.0,0.496096]
[1722715561587,0.011,60473.0,60471.0,0.0093]
[1722715561787,0.16775089,60473.0,60472.0,0.165365]
[1722715562024,0.16775089,60473.0,60471.0,0.0093]
[1722715562248,0.16775089,60473.0,60472.0,1.872789]
[1722715562249,0.009,60473.0,60472.0,1.872789]
[1722715562474,0.00157439,60485.0,60484.0,0.165332]
[1722715562631,0.16575089,60485.0,60483.0,0.1127]
[1722715562833,0.16575089,60485.0,60478.0,0.2074]
[1722715563034,0.16575089,60485.0,60481.0,0.165339]
[1722715563243,0.00157439,60484.0,60478.0,0.2074]
[1722715563445,0.330684,60481.0,60471.0,0.174666]
[1722715563610,0.16732528,60480.0,60473.0,0.330721]
[1722715563818,0.16732528,60480.0,60477.0,0.165349]
[1722715564023,0.16575089,60480.0,60477.0,0.165349]
[1722715564220,0.00157439,60479.0,60477.0,0.165351]
[1722715564423,0.16575089,60478.0,60477.0,0.165351]
[1722715564844,0.16575089,60478.0,60476.0,0.165354]
[1722715565041,0.00157439,60477.0,60476.0,0.165354]
[1722715565247,0.00157439,60477.0,60476.0,0.921472]
[1722715565447,0.00014,60478.0,60477.0,0.496056]
[1722715565687,0.00014,60478.0,60477.0,0.82676]
[1722715565937,0.01014,60478.0,60477.0,0.496056]
[1722715566086,0.01014,60478.0,60476.0,0.2074]
[1722715566451,0.01014,60478.0,60477.0,0.165352]
[1722715566652,0.00014,60478.0,60477.0,0.82676]
[1722715566921,0.00014,60478.0,60477.0,1.488168]
[1722715567155,0.00014,60478.0,60477.0,1.695568]
[1722715567787,0.00314,60478.0,60477.0,1.364864]
[1722715568687,0.00814,60478.0,60477.0,1.364864]
[1722715568884,0.00514,60478.0,60477.0,1.364864]
[1722715569251,0.00514,60478.0,60477.0,1.37854478]
[1722715569252,0.00614,60478.0,60477.0,1.37854478]
[1722715570655,0.03207539,60478.0,60477.0,1.37854478]
[1722715571071,0.00614,60478.0,60477.0,1.37854478]
[1722715572116,0.00614,60478.0,60477.0,1.368864]
[1722715572500,0.00614,60478.0,60477.0,1.03816]
[1722715572844,0.00514,60478.0,60477.0,1.03516]
[1722715573053,0.00014,60478.0,60477.0,1.03416]
[1722715573268,0.00114,60478.0,60477.0,1.364864]
[1722715573707,0.00014,60478.0,60477.0,1.364864]
[1722715573914,0.00014,60478.0,60477.0,1.367864]
[1722715574505,0.02607472,60478.0,60477.0,1.367864]
[1722715574969,0.02607472,60478.0,60477.0,1.368864]
[1722715575145,0.02607472,60478.0,60477.0,1.365864]
[1722715575296,0.02607472,60478.0,60477.0,1.696568]
[1722715575639,0.00014,60478.0,60477.0,1.696568]
[1722715575844,0.00157439,60493.0,60481.0,0.0947]
[1722715576065,0.49750831,60503.0,60502.0,0.165283]
[1722715576208,0.49750831,60503.0,60502.0,0.84294226]
[1722715576556,0.00157439,60511.0,60504.0,0.165277]
[1722715576791,0.16575089,60510.0,60503.0,0.165278]
[1722715576996,0.00157439,60509.0,60506.0,0.16527]
[1722715577179,0.00157439,60509.0,60505.0,0.330548]
[1722715577180,0.16732528,60509.0,60505.0,0.330548]
[1722715577381,0.16732528,60509.0,60503.0,0.330558]
[1722715577586,0.16732528,60509.0,60507.0,0.165269]
[1722715577790,0.16732528,60509.0,60508.0,0.165267]
[1722715577967,0.16575089,60509.0,60508.0,0.495801]
[1722715578150,0.17975089,60509.0,60508.0,0.495801]
[1722715578536,0.16575089,60509.0,60507.0,0.165269]
[1722715578705,0.18875089,60509.0,60508.0,0.495801]
[1722715578909,0.22567665,60509.0,60508.0,0.495801]
[1722715579111,0.19975089,60509.0,60508.0,0.495801]
[1722715579335,0.011,60509.0,60508.0,0.826335]
[1722715579521,0.011,60509.0,60508.0,1.156869]
[1722715579725,0.022,60509.0,60508.0,1.157869]
[1722715580062,0.011,60509.0,60508.0,1.156869]
[1722715580263,0.012,60509.0,60508.0,1.156869]
[1722715580496,0.026,60509.0,60508.0,1.364269]
[1722715580692,0.001,60509.0,60508.0,1.694803]
[1722715581123,0.006,60509.0,60508.0,1.694803]
[1722715581266,0.006,60509.0,60508.0,1.364269]
[1722715582301,0.03192148,60509.0,60508.0,1.364269]
[1722715582698,0.006,60509.0,60508.0,1.364269]
[1722715583446,0.006,60509.0,60508.0,1.694803]
[1722715584767,0.006,60509.0,60508.0,1.364269]
[1722715586095,0.03192066,60509.0,60508.0,1.364269]
[1722715586951,0.03192066,60509.0,60508.0,1.156869]
[1722715587148,0.006,60509.0,60508.0,0.826335]
[1722715587750,0.006,60509.0,60508.0,1.156869]
[1722715587956,0.006,60509.0,60508.0,0.826335]
[1722715589738,0.006,60509.0,60508.0,1.156869]
[1722715590428,0.03192219,60509.0,60508.0,1.156869]
[1722715590630,0.03192219,60509.0,60508.0,1.487403]
[1722715590887,0.006,60509.0,60508.0,1.156869]
[1722715591099,0.5,60535.0,60531.0,0.495613]
[1722715591298,0.5,60535.0,60531.0,0.826022]
[1722715591424,0.5,60535.0,60531.0,0.495613]
[1722715592497,0.5,60535.0,60531.0,0.826022]
[1722715592923,0.00183,60532.0,60531.0,0.826022]
[1722715593368,0.20713,60532.0,60531.0,0.495613]
[1722715593770,0.20713,60532.0,60523.0,0.01652526]
[1722715593771,0.39588089,60532.0,60523.0,0.01652526]
[1722715594068,0.19032528,60531.0,60524.0,0.165222]
[1722715594266,0.19032528,60531.0,60523.0,0.01652526]
[1722715594515,0.19032528,60531.0,60515.0,0.12329649]
[1722715594516,0.09157439,60524.0,60515.0,0.18177226]
[1722715594716,0.00157439,60522.0,60518.0,0.165239]
[1722715594939,0.00157439,60520.0,60517.0,0.16524]
[1722715595141,0.00157439,60520.0,60515.0,0.01652526]
[1722715595142,0.24866894,60519.0,60515.0,0.01652526]
[1722715595353,0.24866894,60519.0,60508.0,0.01652526]
[1722715595532,0.24866894,60519.0,60495.0,0.49750831]
[1722715595533,0.08291805,60512.0,60495.0,0.49750831]
[1722715595734,0.00157439,60510.0,60495.0,0.49750831]
[1722715595942,0.00157439,60508.0,60501.0,0.165285]
[1722715596099,0.00157439,60506.0,60499.0,0.330582]
[1722715596300,0.00157439,60506.0,60501.0,0.165286]
[1722715596511,0.02457439,60506.0,60502.0,0.165283]
[1722715596709,0.00157439,60504.0,60490.0,0.330633]
[1722715596909,0.2063,60511.0,60488.0,0.4781794]
[1722715596910,0.16575089,60503.0,60501.0,0.165285]
[1722715597108,0.12857439,60510.0,60488.0,0.4781794]
[1722715597109,0.00157439,60501.0,60488.0,0.4781794]
[1722715597315,0.00157439,60501.0,60498.0,0.165294]
[1722715597511,0.16575089,60509.0,60497.0,0.165295]
[1722715597512,0.00157439,60504.0,60497.0,0.165295]
[1722715597709,0.16732528,60504.0,60488.0,0.4781794]
[1722715597922,0.00157439,60502.0,60501.0,0.165285]
[1722715598077,0.023,60502.0,60501.0,0.165285]
[1722715598290,0.023,60502.0,60498.0,0.330588]
[1722715598484,0.00157439,60501.0,60498.0,0.165293]
[1722715598723,0.00157439,60501.0,60492.0,0.330619]
[1722715598938,0.00157439,60504.0,60499.0,0.16529]
[1722715599140,0.02592654,60501.0,60500.0,0.165289]
[1722715599347,0.00157439,60500.0,60498.0,0.165294]
[1722715599543,0.00157439,60501.0,60498.0,0.165294]
[1722715599787,0.00157439,60501.0,60500.0,0.165289]
[1722715600028,0.00157439,60501.0,60500.0,0.495867]
[1722715600877,0.00157439,60501.0,60500.0,0.826445]
[1722715601093,0.02457439,60503.0,60502.0,0.165283]
[1722715601219,0.023,60503.0,60502.0,0.165283]
[1722715601417,0.023,60503.0,60502.0,0.49585]
[1722715601622,0.023,60503.0,60501.0,0.165286]
[1722715601848,0.00157439,60502.0,60500.0,0.002]
[1722715602067,0.00157439,60502.0,60500.0,0.001]
[1722715602372,0.00157439,60502.0,60501.0,0.165286]
[1722715602577,0.00157439,60502.0,60493.0,0.330612]
[1722715602917,0.00157439,60502.0,60501.0,0.165286]
[1722715603359,0.00857439,60502.0,60501.0,0.165286]
[1722715603575,0.03,60502.0,60501.0,0.495859]
[1722715603797,0.03,60502.0,60501.0,1.158005]
[1722715603798,0.007,60502.0,60501.0,1.158005]
[1722715604282,0.007,60502.0,60501.0,1.157005]
[1722715604493,0.007,60502.0,60501.0,1.158005]
[1722715604494,0.019,60502.0,60501.0,1.158005]
[1722715604656,0.012,60502.0,60501.0,1.158005]
[1722715604836,0.012,60502.0,60501.0,1.159005]
[1722715605076,0.019,60502.0,60501.0,1.159005]
[1722715606308,0.019,60502.0,60501.0,0.828432]
[1722715606522,0.04492462,60502.0,60501.0,0.828432]
[1722715606903,0.019,60502.0,60501.0,0.828432]
[1722715608177,0.019,60502.0,60501.0,0.497859]
[1722715608527,0.019,60502.0,60501.0,0.002]
[1722715608728,0.042,60502.0,60501.0,0.002]
[1722715608929,0.78651894,60502.0,60501.0,0.002]
[1722715609431,0.55595194,60502.0,60501.0,0.002]
[1722715612894,1.78025294,60502.0,60501.0,0.002]
[1722715613104,0.0912,60496.0,60476.0,0.4684]
[1722715613309,0.165317,60490.0,60480.0,0.330687]
[1722715613533,0.26575089,60489.0,60476.0,0.01652526]
[1722715613760,0.023,60488.0,60476.0,0.01652526]
[1722715613965,0.023,60488.0,60480.0,0.165342]
[1722715614191,0.02593354,60486.0,60479.0,0.33069]
[1722715614394,0.02593354,60486.0,60479.0,0.165346]
[1722715614611,0.02593354,60486.0,60481.0,0.16534]
[1722715614612,0.0912,60484.0,60481.0,0.16534]
[1722715614812,0.25695089,60484.0,60481.0,0.16534]
[1722715615028,0.023,60483.0,60480.0,0.165343]
[1722715615187,0.023,60483.0,60476.0,0.01752526]
[1722715615393,0.08291805,60481.0,60476.0,0.01752526]
[1722715615708,0.18875089,60480.0,60479.0,0.001]
[1722715615909,0.79618089,60480.0,60479.0,0.001]
[1722715616109,0.30015089,60480.0,60479.0,0.001]
[1722715616713,0.79618089,60480.0,60479.0,0.001]
[1722715617032,0.79618089,60480.0,60472.0,0.000913]
[1722715617033,0.165352,60477.0,60472.0,0.000913]
[1722715617188,0.023,60476.0,60472.0,0.000913]
[1722715617394,0.16536,60474.0,60472.0,0.000913]
[1722715617578,0.16575089,60475.0,60472.0,0.000913]
[1722715617794,0.023,60474.0,60472.0,0.000913]
[1722715618209,0.188362,60474.0,60472.0,0.000913]
[1722715618413,0.16575089,60473.0,60472.0,0.000913]
[1722715618627,0.35411389,60473.0,60472.0,0.000913]
[1722715618829,0.18875089,60473.0,60472.0,0.000913]
[1722715619391,0.38005363,60473.0,60472.0,0.000913]
[1722715620328,0.21469063,60473.0,60472.0,0.000913]
[1722715620755,0.22869063,60473.0,60472.0,0.000913]
[1722715621359,0.39405363,60473.0,60472.0,0.000913]
[1722715621560,0.05893974,60473.0,60472.0,0.497009]
[1722715621792,0.05893974,60473.0,60472.0,0.000913]
[1722715621793,0.03593974,60473.0,60472.0,0.000913]
[1722715621942,0.04993974,60473.0,60472.0,0.000913]
[1722715622123,0.23869063,60473.0,60472.0,0.000913]
[1722715622733,1.15690563,60473.0,60472.0,0.000913]
[1722715622951,1.25690563,60473.0,60472.0,0.000913]
[1722715623152,1.37530563,60473.0,60472.0,0.000913]
[1722715623352,0.71385363,60473.0,60472.0,0.000913]
[1722715623531,1.03457963,60473.0,60472.0,0.000913]
[1722715623727,1.35130563,60473.0,60472.0,0.000913]
[1722715623947,1.04657963,60473.0,60472.0,0.000913]
[1722715624375,1.04657963,60473.0,60471.0,0.0093]
[1722715624376,1.325914,60472.0,60471.0,0.0093]
[1722715624575,1.69758294,60472.0,60471.0,0.0093]
[1722715624778,2.03831394,60472.0,60471.0,0.0093]
[1722715624952,2.02831394,60472.0,60471.0,0.0093]
[1722715625193,2.03831394,60472.0,60471.0,0.0093]
[1722715625579,2.05231394,60472.0,60471.0,0.0093]
[1722715625771,1.62866489,60472.0,60471.0,0.0093]
[1722715625972,1.95939589,60472.0,60471.0,0.0093]
[1722715626402,1.62866489,60472.0,60471.0,0.0093]
[1722715626732,2.05631394,60472.0,60471.0,0.0093]
[1722715628214,1.97339589,60472.0,60471.0,0.0093]
[1722715628434,1.98339589,60472.0,60471.0,0.0093]
[1722715628884,1.97339589,60472.0,60471.0,0.0093]
[1722715629036,2.06479589,60472.0,60471.0,0.0093]
[1722715629378,2.15771394,60472.0,60471.0,0.0093]
[1722715630419,2.48844494,60472.0,60471.0,0.0093]
[1722715631961,2.06479589,60472.0,60471.0,0.0093]
[1722715632296,2.07479589,60472.0,60471.0,0.0093]
[1722715632541,2.06479589,60472.0,60471.0,0.0093]
[1722715632973,2.43147117,60472.0,60471.0,1e-08]
[1722715633242,1.377379,60471.0,60470.0,0.0093]
[1722715633525,1.99844128,60471.0,60470.0,0.0093]
[1722715633751,1.498339,60470.0,60469.0,0.91047174]
[1722715634001,2.20072394,60470.0,60469.0,0.88762348]
[1722715634492,2.87979112,60470.0,60469.0,0.63516246]
[1722715635030,3.55068401,60470.0,60446.0,0.1073]
[1722715635298,3.55068401,60470.0,60443.0,0.00931]
[1722715635299,0.165442,60444.0,60443.0,0.00931]
[1722715635491,1.50094489,60444.0,60443.0,0.00931]
[1722715635687,1.63394489,60444.0,60443.0,0.00931]
[1722715635816,1.62394489,60444.0,60443.0,0.00931]
[1722715636196,2.10218283,60444.0,60443.0,0.00931]
[1722715636647,0.442572,60433.0,60432.0,0.0093]
[1722715636860,1.45453094,60433.0,60432.0,0.0093]
[1722715637071,2.32482094,60433.0,60432.0,0.0093]
[1722715637271,2.35782094,60433.0,60432.0,0.0093]
[1722715637406,2.36078061,60433.0,60432.0,0.0093]
[1722715637590,2.36078061,60433.0,60429.0,0.0093]
[1722715637591,1.188363,60430.0,60429.0,0.0093]
[1722715637790,1.188363,60430.0,60416.0,0.00931]
[1722715637791,0.375313,60418.0,60416.0,0.00931]
[1722715638001,1.81124489,60418.0,60416.0,0.00931]
[1722715638830,1.86021036,60418.0,60416.0,0.00931]
[1722715639233,1.87421036,60418.0,60416.0,0.00931]
[1722715639456,1.88821036,60418.0,60416.0,0.00931]
[1722715639682,1.88821036,60418.0,60388.0,0.0984]
[1722715639683,0.165584,60392.0,60388.0,0.0984]
[1722715639827,0.16575089,60392.0,60388.0,0.0984]
[1722715640026,0.1,60400.0,60392.0,0.331167]
[1722715640228,0.023,60399.0,60394.0,0.165577]
[1722715640433,0.1,60400.0,60392.0,0.331165]
[1722715640636,0.16575089,60399.0,60392.0,0.331168]
[1722715640845,0.431076,60410.0,60388.0,0.0984]
[1722715640846,0.1,60417.0,60395.0,0.08291805]
[1722715641054,0.1,60417.0,60416.0,0.165519]
[1722715641055,0.00157439,60417.0,60416.0,0.165519]
[1722715641632,0.014,60418.0,60417.0,0.165516]
[1722715641837,0.00157439,60426.0,60408.0,0.01652526]
[1722715642033,0.00157439,60426.0,60409.0,0.00331043]
[1722715642034,0.16575089,60425.0,60409.0,0.00331043]
[1722715642334,0.00157439,60424.0,60423.0,0.165499]
[1722715642544,0.16732528,60424.0,60421.0,0.370604]
[1722715642920,0.0914,60433.0,60421.0,0.370604]
[1722715642921,0.16575089,60423.0,60422.0,0.496506]
[1722715643091,0.16575089,60423.0,60421.0,0.2051]
[1722715643332,0.00157439,60422.0,60421.0,0.1147]
[1722715643455,0.00157439,60422.0,60409.0,0.331074]
[1722715643456,0.00157439,60420.0,60413.0,0.1147]
[1722715643658,0.008,60417.0,60413.0,0.1147]
[1722715643886,0.16732528,60416.0,60415.0,0.165521]
[1722715644115,0.16575089,60416.0,60413.0,0.1147]
[1722715644253,0.20749244,60415.0,60405.0,0.1147]
[1722715644456,0.16575089,60414.0,60405.0,0.1147]
[1722715644681,0.10157439,60413.0,60405.0,0.1147]
[1722715644883,0.16575089,60412.0,60405.0,0.1147]
[1722715645090,0.1,60413.0,60412.0,0.82765]
[1722715645283,0.1,60413.0,60405.0,0.11801076]
[1722715645284,0.012,60416.0,60415.0,0.496564]
[1722715645488,0.012,60416.0,60415.0,0.827607]
[1722715645894,0.012,60416.0,60415.0,1.032707]
[1722715646096,0.012,60416.0,60415.0,1.36375]
[1722715646294,0.012,60416.0,60415.0,1.032707]
[1722715646718,0.00157439,60430.0,60424.0,0.165496]
[1722715646894,0.08291805,60425.0,60415.0,0.2051]
[1722715647240,0.011,60416.0,60410.0,0.0904]
[1722715647407,0.16732528,60415.0,60409.0,0.00083]
[1722715647624,0.08291805,60410.0,60409.0,0.00083]
[1722715647787,0.16575089,60410.0,60409.0,0.00083]
[1722715647992,0.33128589,60410.0,60409.0,0.00083]
[1722715648191,0.28875089,60410.0,60409.0,0.00083]
[1722715648627,0.76235689,60410.0,60409.0,0.00083]
[1722715648891,0.26575089,60410.0,60409.0,0.00083]
[1722715650085,0.27675089,60410.0,60409.0,0.00083]
[1722715650289,1.34662789,60410.0,60409.0,0.00083]
[1722715650585,1.68769889,60410.0,60409.0,0.00083]
[1722715650786,1.68769889,60410.0,60384.0,0.0904]
[1722715650787,0.2324,60402.0,60384.0,0.2051]
[1722715650995,0.331176,60391.0,60381.0,0.01652526]
[1722715651167,0.331176,60391.0,60363.0,0.01]
[1722715651168,0.1,60388.0,60373.0,0.01652526]
[1722715651373,0.1,60388.0,60371.0,0.0904]
[1722715651374,0.16562,60379.0,60371.0,0.0904]
[1722715651604,0.26575089,60378.0,60371.0,0.0904]
[1722715651822,0.26575089,60378.0,60370.0,0.1147]
[1722715651823,0.59699689,60378.0,60370.0,0.1147]
[1722715652144,0.023,60377.0,60368.0,0.00932]
[1722715652258,0.16575089,60376.0,60368.0,0.00932]
[1722715652466,0.165645,60370.0,60368.0,0.00932]
[1722715652663,0.1,60375.0,60368.0,0.00932]
[1722715652664,0.16539214,60369.0,60368.0,0.00932]
[1722715652863,0.16539214,60369.0,60368.0,0.17497]
[1722715653073,0.1,60375.0,60368.0,0.17497]
[1722715653074,0.1,60375.0,60372.0,0.165638]
[1722715653317,0.1,60375.0,60368.0,0.00932]
[1722715653318,0.16575089,60374.0,60368.0,0.00932]
[1722715653527,0.1,60373.0,60368.0,0.00932]
[1722715653723,0.1,60373.0,60372.0,0.165639]
[1722715653992,0.1,60373.0,60368.0,0.00932]
[1722715654197,0.16575089,60372.0,60368.0,0.00932]
[1722715654353,0.1,60371.0,60368.0,0.00932]
[1722715654567,0.16575089,60370.0,60368.0,0.00932]
[1722715654772,0.165647,60369.0,60368.0,0.00932]
[1722715655113,0.68569289,60369.0,60368.0,0.00932]
[1722715655347,1.01698789,60369.0,60368.0,0.00932]
[1722715655619,0.68569289,60369.0,60368.0,0.00932]
[1722715655823,1.01698789,60369.0,60368.0,0.00932]
[1722715656071,1.34828289,60369.0,60368.0,0.00932]
[1722715656258,1.62503378,60369.0,60368.0,0.00932]
[1722715656466,1.96632878,60369.0,60368.0,0.00932]
[1722715656674,1.65503378,60369.0,60368.0,0.00932]
[1722715656878,1.98632878,60369.0,60368.0,0.00932]
[1722715657094,2.28761941,60369.0,60368.0,0.00932]
[1722715657312,2.28761941,60369.0,60348.0,0.00932]
[1722715657313,0.828512,60349.0,60348.0,0.00932]
[1722715657523,0.99426289,60349.0,60348.0,0.00932]
[1722715657735,0.28875089,60349.0,60348.0,0.00932]
[1722715658101,0.45445289,60349.0,60348.0,0.00932]
[1722715658305,1.11726289,60349.0,60348.0,0.00932]
[1722715658518,1.11726289,60349.0,60327.0,0.00932]
[1722715658519,0.597281,60328.0,60327.0,0.00932]
[1722715658675,1.63827389,60328.0,60327.0,0.00932]
[1722715658873,0.828952,60317.0,60316.0,0.00011]
[1722715659085,0.620371,60317.0,60316.0,0.00011]
[1722715659302,1.505733,60317.0,60316.0,0.00011]
[1722715659511,1.495733,60317.0,60316.0,0.00011]
[1722715659711,1.164152,60317.0,60316.0,0.00011]
[1722715659913,1.32990289,60317.0,60316.0,0.00011]
[1722715660321,0.27975089,60317.0,60316.0,0.00011]
[1722715660756,0.44554089,60317.0,60316.0,0.00011]
[1722715660955,0.82613305,60317.0,60316.0,0.00011]
[1722715661221,1.15771405,60317.0,60316.0,0.00011]
[1722715661467,1.16703405,60317.0,60316.0,0.00011]
[1722715661731,1.36523405,60317.0,60316.0,0.00011]
[1722715662153,1.90121505,60317.0,60316.0,0.00011]
[1722715662358,1.90121505,60317.0,60280.0,0.1074]
[1722715662359,0.929157,60302.0,60280.0,0.1074]
[1722715662534,0.929157,60302.0,60281.0,0.00331766]
[1722715662535,1.37533055,60302.0,60281.0,0.00331766]
[1722715662753,1.88552455,60302.0,60280.0,0.1074]
[1722715662958,1.88552455,60302.0,60280.0,0.439181]
[1722715663158,1.88552455,60302.0,60280.0,0.439182]
[1722715663359,1.38803055,60302.0,60286.0,0.331749]
[1722715663477,1.38803055,60302.0,60295.0,0.16585]
[1722715663682,1.38803055,60302.0,60294.0,0.165853]
[1722715663683,0.70941055,60302.0,60294.0,0.165853]
[1722715663884,0.72341055,60302.0,60293.0,0.165855]
[1722715664133,0.72341055,60302.0,60291.0,0.165861]
[1722715664350,0.72341055,60302.0,60286.0,0.331749]
[1722715664351,0.87524155,60302.0,60286.0,0.331749]
[1722715664565,0.70941055,60302.0,60286.0,0.331749]
[1722715664783,0.70941055,60302.0,60293.0,0.331711]
[1722715664784,0.72341055,60302.0,60293.0,0.331711]
[1722715665150,0.72341055,60302.0,60296.0,0.331691]
[1722715665352,0.72341055,60302.0,60289.0,0.331731]
[1722715665576,0.74942641,60302.0,60294.0,0.165853]
[1722715665760,0.74942641,60302.0,60292.0,0.331714]
[1722715665961,0.73542641,60302.0,60295.0,0.331697]
[1722715666172,0.41476675,60302.0,60301.0,0.542503]
[1722715666366,0.20576675,60302.0,60301.0,0.874172]
[1722715666523,0.20576675,60302.0,60301.0,0.045]
[1722715666735,0.20576675,60302.0,60301.0,0.210834]
[1722715666945,0.26575089,60302.0,60301.0,0.045]
[1722715667146,0.37035089,60302.0,60301.0,0.045]
[1722715667356,1.63431625,60302.0,60301.0,0.045]
[1722715667554,1.29580789,60302.0,60301.0,0.045]
[1722715667771,1.06414489,60302.0,60301.0,0.045]
[1722715667989,0.58965089,60302.0,60301.0,0.045]
[1722715668225,0.16575089,60302.0,60301.0,0.045]
[1722715668432,0.26575089,60302.0,60301.0,0.045]
[1722715669088,0.27975089,60302.0,60301.0,0.045]
[1722715669725,0.53158189,60302.0,60301.0,0.045]
[1722715669926,0.56858189,60302.0,60301.0,0.045]
[1722715670058,0.42876624,60302.0,60301.0,0.045]
[1722715670258,0.56858189,60302.0,60301.0,0.045]
[1722715670463,0.40275089,60302.0,60301.0,0.045]
[1722715670899,0.30275089,60302.0,60301.0,0.210834]
[1722715671258,0.288253,60301.0,60300.0,0.497511]
[1722715671457,0.57700389,60301.0,60300.0,0.497511]
[1722715672080,0.57700389,60301.0,60300.0,0.165837]
[1722715672289,0.67700389,60301.0,60282.0,0.1074]
[1722715672496,0.37166894,60300.0,60289.0,0.331731]
[1722715672697,0.37166894,60300.0,60282.0,0.1074]
[1722715672899,0.28875089,60300.0,60299.0,0.8292]
[1722715673103,0.28875089,60300.0,60299.0,1.16088]
[1722715673104,0.16575089,60300.0,60299.0,1.16088]
[1722715673308,0.288253,60301.0,60300.0,0.829185]
[1722715673482,0.46800389,60301.0,60300.0,1.268259]
[1722715673865,0.4800171,60301.0,60300.0,1.268259]
[1722715674063,0.31426621,60301.0,60300.0,1.693333]
[1722715674334,0.288253,60301.0,60300.0,1.693333]
[1722715675300,0.288253,60301.0,60300.0,1.361659]
[1722715675955,0.288253,60301.0,60300.0,1.703333]
[1722715676163,0.00019006,60308.0,60307.0,1.170726]
[1722715676365,0.4990827,60326.0,60307.0,1.170726]
[1722715676366,0.49750831,60326.0,60325.0,0.497305]
[1722715676484,0.6632592,60326.0,60325.0,0.828842]
[1722715676703,0.16575089,60326.0,60325.0,0.828842]
[1722715676911,0.16575089,60326.0,60325.0,0.497305]
[1722715677323,0.16575089,60326.0,60321.0,0.331556]
[1722715677324,0.16575089,60326.0,60324.0,0.16577]
[1722715677520,0.24866894,60325.0,60318.0,0.331572]
[1722715677730,0.24866894,60325.0,60318.0,0.331575]
[1722715677940,0.00157439,60324.0,60319.0,0.165784]
[1722715678191,0.16575089,60323.0,60319.0,0.165784]
[1722715678382,0.00157439,60322.0,60315.0,0.331589]
[1722715678557,0.00091301,60310.0,60309.0,0.273212]
[1722715678771,0.00091301,60310.0,60309.0,0.936462]
[1722715679136,0.00091301,60310.0,60309.0,1.268087]
[1722715679615,0.00091301,60310.0,60309.0,1.599712]
[1722715680311,0.00091301,60310.0,60309.0,1.275087]
[1722715680635,0.00191301,60310.0,60309.0,1.275087]
[1722715681018,0.00191301,60310.0,60309.0,1.636712]
[1722715681220,0.00191301,60310.0,60309.0,1.275087]
[1722715681221,0.02791894,60310.0,60309.0,1.275087]
[1722715681824,0.02791894,60310.0,60309.0,1.618712]
[1722715682037,0.02791894,60310.0,60309.0,1.638712]
[1722715682209,0.02791894,60310.0,60309.0,1.970337]
[1722715682422,0.02691894,60310.0,60309.0,1.609712]
[1722715682595,0.02691894,60310.0,60309.0,1.599712]
[1722715682854,0.02791894,60310.0,60309.0,1.274087]
[1722715683095,0.19366983,60310.0,60309.0,0.006]
[1722715683329,0.19266983,60310.0,60309.0,0.497437]
[1722715683506,0.19266983,60310.0,60309.0,1.19021226]
[1722715683507,0.02791894,60310.0,60309.0,1.19021226]
[1722715683904,0.02791894,60310.0,60309.0,1.173687]
[1722715684118,0.02691894,60310.0,60309.0,1.160687]